[Event "Titled Tuesday Blitz August 22 Early 2023"]
[White "Budrewicz, Krzysztof"]
[Black "Baches Garcia, Guillermo"]
[WhiteFideId "1127950"]
[BlackFideId "2209764"]
[WhiteElo "2542"]
[BlackElo "2431"]
[Result "1-0"]
[Round "8"]
[TimeControl "180+1"]
[Date "2023.08.22"]
[WhiteClock "0:01:54"]
[BlackClock "0:00:00"]
[Board "107"]

1. d4 {[%clk 0:03:00]}  d5 {[%clk 0:03:00]} 2. c4 {[%clk 0:03:00]}  e6 {[%clk 0:03:00]} 3. Nc3 {[%clk 0:03:00]}  h6 {[%clk 0:03:01]} 4. Nf3 {[%clk 0:03:00]}  Nf6 {[%clk 0:03:00]} 5. Bf4 {[%clk 0:03:00]}  Bd6 {[%clk 0:03:00]} 6. Bxd6 {[%clk 0:02:58]}  Qxd6 {[%clk 0:02:59]} 7. e3 {[%clk 0:02:58]}  O-O {[%clk 0:02:57]} 8. Rc1 {[%clk 0:02:58]}  Qe7 {[%clk 0:02:48]} 9. Qb3 {[%clk 0:02:56]}  c6 {[%clk 0:02:43]} 10. Be2 {[%clk 0:02:55]}  Nbd7 {[%clk 0:02:39]} 11. O-O {[%clk 0:02:47]}  Re8 {[%clk 0:02:27]} 12. Rfd1 {[%clk 0:02:46]}  Ne4 {[%clk 0:02:15]} 13. Nxe4 {[%clk 0:02:45]}  dxe4 {[%clk 0:02:15]} 14. Nd2 {[%clk 0:02:45]}  f5 {[%clk 0:02:06]} 15. c5 {[%clk 0:02:43]}  Kh7 {[%clk 0:01:51]} 16. Nc4 {[%clk 0:02:43]}  e5 {[%clk 0:01:52]} 17. Nd6 {[%clk 0:02:40]}  Rf8 {[%clk 0:01:51]} 18. d5 {[%clk 0:02:35]}  Nxc5 {[%clk 0:01:40]} 19. Rxc5 {[%clk 0:02:30]}  Qxd6 {[%clk 0:01:40]} 20. Qc3 {[%clk 0:02:27]}  cxd5 {[%clk 0:01:25]} 21. Rcxd5 {[%clk 0:02:23]}  Qf6 {[%clk 0:01:17]} 22. Qxe5 {[%clk 0:02:21]}  Be6 {[%clk 0:01:09]} 23. Qxf6 {[%clk 0:02:17]}  Rxf6 {[%clk 0:01:10]} 24. Rd6 {[%clk 0:02:14]}  Bxa2 {[%clk 0:01:01]} 25. Rxf6 {[%clk 0:02:14]}  gxf6 {[%clk 0:01:01]} 26. Rd7+ {[%clk 0:02:14]}  Kg6 {[%clk 0:00:58]} 27. Rxb7 {[%clk 0:02:10]}  a5 {[%clk 0:00:56]} 28. h4 {[%clk 0:02:02]}  h5 {[%clk 0:00:54]} 29. Kh2 {[%clk 0:02:02]}  a4 {[%clk 0:00:49]} 30. Kg3 {[%clk 0:01:56]}  a3 {[%clk 0:00:44]} 31. bxa3 {[%clk 0:01:56]}  Rxa3 {[%clk 0:00:45]} 32. Bb5 {[%clk 0:01:56]}  Bf7 {[%clk 0:00:38]} 33. Bd7 {[%clk 0:01:56]}  Ra5 {[%clk 0:00:24]} 34. Rb5 {[%clk 0:01:55]}  Rxb5 {[%clk 0:00:21]} 35. Bxb5 {[%clk 0:01:55]}  Be6 {[%clk 0:00:21]} 36. Kf4 {[%clk 0:01:55]}  Bc8 {[%clk 0:00:21]} 37. Be8+ {[%clk 0:01:55]}  Kg7 {[%clk 0:00:00]} 38. Bxh5 {[%clk 0:01:54]} 1-0


[Site "https://www.chess.com"]

[Event "Titled Tuesday Blitz August 22 Early 2023"]
[White "Sreyas Payyappat"]
[Black "Pavlidis, Anastasios"]
[WhiteFideId "46674969"]
[BlackFideId "4208404"]
[WhiteElo "2527"]
[BlackElo "2339"]
[Result "1-0"]
[Round "8"]
[TimeControl "180+1"]
[Date "2023.08.22"]
[WhiteClock "0:00:44"]
[BlackClock "0:00:09"]
[Board "111"]

1. e4 {[%clk 0:03:00]}  c6 {[%clk 0:02:59]} 2. d4 {[%clk 0:03:00]}  d5 {[%clk 0:02:59]} 3. Nc3 {[%clk 0:03:00]}  dxe4 {[%clk 0:02:58]} 4. Nxe4 {[%clk 0:03:01]}  Nf6 {[%clk 0:02:59]} 5. Nxf6+ {[%clk 0:03:00]}  gxf6 {[%clk 0:02:58]} 6. Bc4 {[%clk 0:03:01]}  e6 {[%clk 0:02:53]} 7. Ne2 {[%clk 0:02:59]}  Bd6 {[%clk 0:02:51]} 8. Bf4 {[%clk 0:02:58]}  Qa5+ {[%clk 0:02:48]} 9. c3 {[%clk 0:02:55]}  Bxf4 {[%clk 0:02:47]} 10. Nxf4 {[%clk 0:02:56]}  Qg5 {[%clk 0:02:47]} 11. Qf3 {[%clk 0:02:55]}  Nd7 {[%clk 0:02:46]} 12. h4 {[%clk 0:02:52]}  Qa5 {[%clk 0:02:43]} 13. O-O-O {[%clk 0:02:49]}  Nb6 {[%clk 0:02:37]} 14. Bb3 {[%clk 0:02:48]}  Bd7 {[%clk 0:02:36]} 15. Rhe1 {[%clk 0:02:47]}  O-O-O {[%clk 0:02:36]} 16. g4 {[%clk 0:02:44]}  Nd5 {[%clk 0:02:23]} 17. Nxd5 {[%clk 0:02:40]}  exd5 {[%clk 0:02:20]} 18. Kb1 {[%clk 0:02:28]}  Rhe8 {[%clk 0:02:11]} 19. Bc2 {[%clk 0:02:22]}  Qc7 {[%clk 0:02:06]} 20. g5 {[%clk 0:01:47]}  fxg5 {[%clk 0:02:03]} 21. hxg5 {[%clk 0:01:48]}  Rg8 {[%clk 0:01:58]} 22. Qxf7 {[%clk 0:01:45]}  Rxg5 {[%clk 0:01:55]} 23. Re7 {[%clk 0:01:43]}  h5 {[%clk 0:01:43]} 24. Rde1 {[%clk 0:01:31]}  Qd6 {[%clk 0:01:38]} 25. f4 {[%clk 0:01:12]}  Rg2 {[%clk 0:01:12]} 26. Rxd7 {[%clk 0:01:09]}  Rxd7 {[%clk 0:01:11]} 27. Bf5 {[%clk 0:01:09]}  Kc7 {[%clk 0:00:37]} 28. Bxd7 {[%clk 0:01:06]}  Kb6 {[%clk 0:00:37]} 29. Bh3 {[%clk 0:00:54]}  Rf2 {[%clk 0:00:29]} 30. Re7 {[%clk 0:00:47]}  Qb8 {[%clk 0:00:22]} 31. a3 {[%clk 0:00:43]}  Rxf4 {[%clk 0:00:20]} 32. Rxb7+ {[%clk 0:00:42]}  Qxb7 {[%clk 0:00:20]} 33. Qxf4 {[%clk 0:00:41]}  Qh7+ {[%clk 0:00:21]} 34. Bf5 {[%clk 0:00:39]}  Qf7 {[%clk 0:00:19]} 35. Qb8+ {[%clk 0:00:38]}  Qb7 {[%clk 0:00:18]} 36. Qxb7+ {[%clk 0:00:36]}  Kxb7 {[%clk 0:00:18]} 37. Kc2 {[%clk 0:00:37]}  Kc7 {[%clk 0:00:18]} 38. Kd3 {[%clk 0:00:38]}  Kd6 {[%clk 0:00:18]} 39. Ke3 {[%clk 0:00:39]}  Kc7 {[%clk 0:00:16]} 40. Kf4 {[%clk 0:00:40]}  Kb6 {[%clk 0:00:17]} 41. Ke5 {[%clk 0:00:39]}  h4 {[%clk 0:00:16]} 42. b3 {[%clk 0:00:40]}  a5 {[%clk 0:00:16]} 43. a4 {[%clk 0:00:39]}  Kb7 {[%clk 0:00:14]} 44. Kd6 {[%clk 0:00:39]}  Kb6 {[%clk 0:00:15]} 45. Bh3 {[%clk 0:00:40]}  Kb7 {[%clk 0:00:15]} 46. Bd7 {[%clk 0:00:39]}  Kb6 {[%clk 0:00:15]} 47. Bxc6 {[%clk 0:00:40]}  h3 {[%clk 0:00:15]} 48. Bxd5 {[%clk 0:00:41]}  h2 {[%clk 0:00:16]} 49. c4 {[%clk 0:00:41]}  Ka6 {[%clk 0:00:15]} 50. Bh1 {[%clk 0:00:42]}  Ka7 {[%clk 0:00:15]} 51. Kc7 {[%clk 0:00:42]}  Ka6 {[%clk 0:00:12]} 52. d5 {[%clk 0:00:42]}  Ka7 {[%clk 0:00:13]} 53. d6 {[%clk 0:00:43]}  Ka6 {[%clk 0:00:09]} 54. d7 {[%clk 0:00:44]} 1-0


[Site "https://www.chess.com"]

[Event "Titled Tuesday Blitz August 22 Early 2023"]
[White "Tiarks, Jann-Christian"]
[Black "Karamsetty, Jeevan"]
[WhiteFideId "12951595"]
[BlackFideId "2025337"]
[WhiteElo "2320"]
[BlackElo "2526"]
[Result "0-1"]
[Round "8"]
[TimeControl "180+1"]
[Date "2023.08.22"]
[WhiteClock "0:00:50"]
[BlackClock "0:00:31"]
[Board "112"]

1. e4 {[%clk 0:03:00]}  e5 {[%clk 0:02:56]} 2. Bc4 {[%clk 0:02:58]}  Nf6 {[%clk 0:02:50]} 3. d4 {[%clk 0:02:58]}  exd4 {[%clk 0:02:40]} 4. Nf3 {[%clk 0:02:55]}  Nc6 {[%clk 0:02:38]} 5. e5 {[%clk 0:02:53]}  d5 {[%clk 0:02:35]} 6. Bb5 {[%clk 0:02:52]}  Ne4 {[%clk 0:02:35]} 7. Nxd4 {[%clk 0:02:52]}  Bd7 {[%clk 0:02:34]} 8. O-O {[%clk 0:02:52]}  Bc5 {[%clk 0:02:28]} 9. c3 {[%clk 0:02:52]}  Bxd4 {[%clk 0:02:13]} 10. cxd4 {[%clk 0:02:37]}  Nxe5 {[%clk 0:02:09]} 11. dxe5 {[%clk 0:02:34]}  Bxb5 {[%clk 0:02:07]} 12. Re1 {[%clk 0:02:35]}  O-O {[%clk 0:02:00]} 13. Nc3 {[%clk 0:02:35]}  Bc6 {[%clk 0:01:55]} 14. Nxe4 {[%clk 0:02:33]}  dxe4 {[%clk 0:01:56]} 15. Qg4 {[%clk 0:02:33]}  Qd5 {[%clk 0:01:52]} 16. Bf4 {[%clk 0:02:29]}  Rae8 {[%clk 0:01:47]} 17. Rad1 {[%clk 0:02:26]}  Qa5 {[%clk 0:01:44]} 18. a3 {[%clk 0:02:20]}  Re6 {[%clk 0:01:43]} 19. h4 {[%clk 0:02:19]}  Rg6 {[%clk 0:01:38]} 20. Qh3 {[%clk 0:02:12]}  e3 {[%clk 0:01:38]} 21. f3 {[%clk 0:02:12]}  e2 {[%clk 0:01:30]} 22. Rxe2 {[%clk 0:02:08]}  Qa4 {[%clk 0:01:29]} 23. Rde1 {[%clk 0:01:39]}  Qxf4 {[%clk 0:01:26]} 24. h5 {[%clk 0:01:40]}  Re6 {[%clk 0:01:23]} 25. b4 {[%clk 0:01:36]}  a6 {[%clk 0:01:22]} 26. Rd1 {[%clk 0:01:21]}  Rxe5 {[%clk 0:01:12]} 27. Red2 {[%clk 0:01:21]}  Qe3+ {[%clk 0:01:01]} 28. Kh2 {[%clk 0:01:18]}  h6 {[%clk 0:00:58]} 29. Rd8 {[%clk 0:01:15]}  Ree8 {[%clk 0:00:58]} 30. R8d4 {[%clk 0:01:13]}  Qe5+ {[%clk 0:00:55]} 31. Kg1 {[%clk 0:01:12]}  Qe3+ {[%clk 0:00:54]} 32. Kh2 {[%clk 0:01:12]}  Qxa3 {[%clk 0:00:46]} 33. Rg4 {[%clk 0:01:10]}  Qb2 {[%clk 0:00:44]} 34. Qg3 {[%clk 0:01:07]}  Qf6 {[%clk 0:00:41]} 35. Rdd4 {[%clk 0:01:04]}  Kh8 {[%clk 0:00:36]} 36. Rdf4 {[%clk 0:01:02]}  Qe5 {[%clk 0:00:33]} 37. Kh3 {[%clk 0:00:50]}  Bd7 {[%clk 0:00:31]} 0-1


[Site "https://www.chess.com"]

[Event "Titled Tuesday Blitz August 22 Early 2023"]
[White "Shishkov, Andrei"]
[Black "Miguelitro69"]
[WhiteFideId "4500563"]
[WhiteElo "2519"]
[BlackElo "2276"]
[Result "1/2-1/2"]
[Round "8"]
[TimeControl "180+1"]
[Date "2023.08.22"]
[WhiteClock "0:00:06"]
[BlackClock "0:00:22"]
[Board "113"]

1. d4 {[%clk 0:03:00]}  Nf6 {[%clk 0:02:59]} 2. c4 {[%clk 0:03:00]}  d6 {[%clk 0:02:59]} 3. Nc3 {[%clk 0:03:00]}  g6 {[%clk 0:02:59]} 4. e4 {[%clk 0:03:00]}  Bg7 {[%clk 0:02:59]} 5. f3 {[%clk 0:03:00]}  O-O {[%clk 0:03:00]} 6. Be3 {[%clk 0:03:01]}  e5 {[%clk 0:02:59]} 7. d5 {[%clk 0:03:00]}  Nbd7 {[%clk 0:02:59]} 8. Qd2 {[%clk 0:03:01]}  a5 {[%clk 0:02:59]} 9. O-O-O {[%clk 0:02:59]}  Nc5 {[%clk 0:02:58]} 10. g4 {[%clk 0:02:58]}  a4 {[%clk 0:02:57]} 11. Nge2 {[%clk 0:02:51]}  Bd7 {[%clk 0:02:45]} 12. Ng3 {[%clk 0:02:46]}  Qb8 {[%clk 0:02:27]} 13. Kb1 {[%clk 0:02:33]}  Ne8 {[%clk 0:02:16]} 14. Be2 {[%clk 0:02:21]}  Kh8 {[%clk 0:02:09]} 15. h4 {[%clk 0:02:20]}  f5 {[%clk 0:02:06]} 16. gxf5 {[%clk 0:01:35]}  gxf5 {[%clk 0:02:05]} 17. exf5 {[%clk 0:01:21]}  Bxf5+ {[%clk 0:02:04]} 18. Nxf5 {[%clk 0:01:20]}  Rxf5 {[%clk 0:02:04]} 19. Bxc5 {[%clk 0:01:05]}  dxc5 {[%clk 0:02:03]} 20. Ne4 {[%clk 0:01:06]}  b6 {[%clk 0:02:00]} 21. h5 {[%clk 0:00:57]}  Nd6 {[%clk 0:01:58]} 22. h6 {[%clk 0:00:56]}  Bf6 {[%clk 0:01:55]} 23. Bd3 {[%clk 0:00:49]}  Rxf3 {[%clk 0:01:45]} 24. Rdf1 {[%clk 0:00:43]}  Rxf1+ {[%clk 0:01:35]} 25. Rxf1 {[%clk 0:00:44]}  Be7 {[%clk 0:01:35]} 26. Nxd6 {[%clk 0:00:39]}  cxd6 {[%clk 0:01:34]} 27. Rf7 {[%clk 0:00:38]}  Qd8 {[%clk 0:01:19]} 28. Rxh7+ {[%clk 0:00:37]}  Kg8 {[%clk 0:01:19]} 29. Qg2+ {[%clk 0:00:37]}  Bg5 {[%clk 0:01:09]} 30. Rg7+ {[%clk 0:00:37]}  Kh8 {[%clk 0:01:07]} 31. Qxg5 {[%clk 0:00:33]}  Qxg5 {[%clk 0:01:06]} 32. Rxg5 {[%clk 0:00:34]}  Rf8 {[%clk 0:01:06]} 33. Bf5 {[%clk 0:00:31]}  Rf6 {[%clk 0:01:05]} 34. h7 {[%clk 0:00:31]}  Rf8 {[%clk 0:00:59]} 35. Kc2 {[%clk 0:00:29]}  Re8 {[%clk 0:00:57]} 36. Kd3 {[%clk 0:00:27]}  Ra8 {[%clk 0:00:53]} 37. Rg8+ {[%clk 0:00:24]}  Rxg8 {[%clk 0:00:52]} 38. hxg8=Q+ {[%clk 0:00:24]}  Kxg8 {[%clk 0:00:53]} 39. Bd7 {[%clk 0:00:23]}  a3 {[%clk 0:00:53]} 40. bxa3 {[%clk 0:00:22]}  Kg7 {[%clk 0:00:53]} 41. Ke4 {[%clk 0:00:21]}  Kf6 {[%clk 0:00:53]} 42. Bh3 {[%clk 0:00:20]}  Kg5 {[%clk 0:00:53]} 43. Bc8 {[%clk 0:00:20]}  Kf6 {[%clk 0:00:53]} 44. Bh3 {[%clk 0:00:18]}  Kg5 {[%clk 0:00:52]} 45. Bf1 {[%clk 0:00:19]}  Kg4 {[%clk 0:00:51]} 46. Be2+ {[%clk 0:00:19]}  Kg5 {[%clk 0:00:51]} 47. Bd1 {[%clk 0:00:19]}  Kf6 {[%clk 0:00:51]} 48. Kf3 {[%clk 0:00:18]}  Kg5 {[%clk 0:00:51]} 49. Bc2 {[%clk 0:00:19]}  Kh4 {[%clk 0:00:49]} 50. Bf5 {[%clk 0:00:16]}  Kg5 {[%clk 0:00:49]} 51. Bc2 {[%clk 0:00:16]}  Kh4 {[%clk 0:00:49]} 52. Ke4 {[%clk 0:00:16]}  Kg5 {[%clk 0:00:49]} 53. Bd1 {[%clk 0:00:16]}  Kf6 {[%clk 0:00:48]} 54. Kf3 {[%clk 0:00:15]}  Kg5 {[%clk 0:00:48]} 55. Kg3 {[%clk 0:00:15]}  Kf5 {[%clk 0:00:46]} 56. Bc2+ {[%clk 0:00:15]}  Kg5 {[%clk 0:00:46]} 57. Bd3 {[%clk 0:00:15]}  Kh5 {[%clk 0:00:41]} 58. Kf3 {[%clk 0:00:14]}  Kg5 {[%clk 0:00:41]} 59. Ke4 {[%clk 0:00:14]}  Kg4 {[%clk 0:00:40]} 60. a4 {[%clk 0:00:13]}  Kg5 {[%clk 0:00:39]} 61. Bf1 {[%clk 0:00:13]}  Kg4 {[%clk 0:00:39]} 62. Be2+ {[%clk 0:00:13]}  Kg5 {[%clk 0:00:39]} 63. Bd1 {[%clk 0:00:13]}  Kf6 {[%clk 0:00:39]} 64. Ke3 {[%clk 0:00:12]}  Kf5 {[%clk 0:00:39]} 65. Kf3 {[%clk 0:00:12]}  Kg5 {[%clk 0:00:38]} 66. Kg3 {[%clk 0:00:12]}  Kf5 {[%clk 0:00:36]} 67. Bc2+ {[%clk 0:00:13]}  Kg5 {[%clk 0:00:31]} 68. a3 {[%clk 0:00:12]}  Kh5 {[%clk 0:00:31]} 69. Kf3 {[%clk 0:00:12]}  Kg5 {[%clk 0:00:31]} 70. Bd3 {[%clk 0:00:11]}  Kh4 {[%clk 0:00:30]} 71. Bf5 {[%clk 0:00:09]}  Kg5 {[%clk 0:00:29]} 72. Be6 {[%clk 0:00:07]}  Kh4 {[%clk 0:00:28]} 73. Ke4 {[%clk 0:00:08]}  Kg5 {[%clk 0:00:28]} 74. Bh3 {[%clk 0:00:08]}  Kf6 {[%clk 0:00:27]} 75. Bf1 {[%clk 0:00:08]}  Kg5 {[%clk 0:00:26]} 76. Kd3 {[%clk 0:00:08]}  Kf4 {[%clk 0:00:25]} 77. Bg2 {[%clk 0:00:08]}  Kg3 {[%clk 0:00:24]} 78. Be4 {[%clk 0:00:07]}  Kf4 {[%clk 0:00:24]} 79. Bh7 {[%clk 0:00:07]}  Kf3 {[%clk 0:00:23]} 80. Bg6 {[%clk 0:00:07]}  Kf4 {[%clk 0:00:23]} 81. Kc3 {[%clk 0:00:07]}  Ke3 {[%clk 0:00:22]} 82. Be8 {[%clk 0:00:05]}  Kf4 {[%clk 0:00:20]} 83. Kd3 {[%clk 0:00:05]}  Kf3 {[%clk 0:00:20]} 84. Bg6 {[%clk 0:00:06]}  Kf4 {[%clk 0:00:21]} 85. Ke2 {[%clk 0:00:05]}  Kg5 {[%clk 0:00:21]} 86. Bc2 {[%clk 0:00:05]}  Kf4 {[%clk 0:00:22]} 87. Kf2 {[%clk 0:00:05]}  Kg4 {[%clk 0:00:22]} 88. Ke3 {[%clk 0:00:05]}  Kg3 {[%clk 0:00:22]} 89. Ke4 {[%clk 0:00:06]}  Kg4 {[%clk 0:00:23]} 90. Bb1 {[%clk 0:00:05]}  Kg5 {[%clk 0:00:24]} 91. Bc2 {[%clk 0:00:06]}  Kf6 {[%clk 0:00:24]} 92. Bd1 {[%clk 0:00:07]}  Kg5 {[%clk 0:00:24]} 93. Be2 {[%clk 0:00:07]}  Kf6 {[%clk 0:00:25]} 94. Bg4 {[%clk 0:00:07]}  Kg5 {[%clk 0:00:25]} 95. Bf5 {[%clk 0:00:08]}  Kf6 {[%clk 0:00:25]} 96. Bh7 {[%clk 0:00:08]}  Kg5 {[%clk 0:00:25]} 97. Bg8 {[%clk 0:00:07]}  Kg4 {[%clk 0:00:25]} 98. Be6+ {[%clk 0:00:08]}  Kg5 {[%clk 0:00:25]} 99. Kd3 {[%clk 0:00:08]}  Kf4 {[%clk 0:00:26]} 100. Bg8 {[%clk 0:00:07]}  Kg5 {[%clk 0:00:26]} 101. Bh7 {[%clk 0:00:07]}  Kf4 {[%clk 0:00:26]} 102. Be4 {[%clk 0:00:08]}  Kg3 {[%clk 0:00:25]} 103. Ke3 {[%clk 0:00:08]}  Kg4 {[%clk 0:00:26]} 104. Bg2 {[%clk 0:00:08]}  Kg3 {[%clk 0:00:25]} 105. Bf1 {[%clk 0:00:08]}  Kg4 {[%clk 0:00:25]} 106. Ke4 {[%clk 0:00:08]}  Kg5 {[%clk 0:00:26]} 107. Be2 {[%clk 0:00:09]}  Kf6 {[%clk 0:00:26]} 108. Kf3 {[%clk 0:00:09]}  Kg5 {[%clk 0:00:26]} 109. Kg3 {[%clk 0:00:09]}  Kf5 {[%clk 0:00:24]} 110. Bd3+ {[%clk 0:00:09]}  Kg5 {[%clk 0:00:23]} 111. Kf3 {[%clk 0:00:08]}  Kh4 {[%clk 0:00:23]} 112. Ke4 {[%clk 0:00:07]}  Kg4 {[%clk 0:00:22]} 113. Be2+ {[%clk 0:00:07]}  Kg5 {[%clk 0:00:22]} 114. Bd1 {[%clk 0:00:08]}  Kf6 {[%clk 0:00:22]} 115. Kd3 {[%clk 0:00:07]}  Kf5 {[%clk 0:00:22]} 116. Kc3 {[%clk 0:00:06]}  Ke4 {[%clk 0:00:22]} 117. Bc2+ {[%clk 0:00:06]}  Ke3 {[%clk 0:00:22]} 118. Bg6 {[%clk 0:00:06]} 1/2-1/2


[Site "https://www.chess.com"]

[Event "Titled Tuesday Blitz August 22 Early 2023"]
[White "Vivas Zamora, Fabian Ernesto"]
[Black "Eynullayev, Atilla"]
[WhiteFideId "3902480"]
[BlackFideId "13413570"]
[WhiteElo "2424"]
[BlackElo "2630"]
[Result "1-0"]
[Round "8"]
[TimeControl "180+1"]
[Date "2023.08.22"]
[WhiteClock "0:00:24"]
[BlackClock "0:00:16"]
[Board "120"]

1. e4 {[%clk 0:02:56]}  c5 {[%clk 0:02:59]} 2. Nf3 {[%clk 0:02:54]}  Nc6 {[%clk 0:02:59]} 3. d4 {[%clk 0:02:55]}  cxd4 {[%clk 0:02:59]} 4. Nxd4 {[%clk 0:02:56]}  Nf6 {[%clk 0:03:00]} 5. Nc3 {[%clk 0:02:56]}  e5 {[%clk 0:03:00]} 6. Ndb5 {[%clk 0:02:55]}  d6 {[%clk 0:03:01]} 7. Bg5 {[%clk 0:02:55]}  a6 {[%clk 0:03:01]} 8. Na3 {[%clk 0:02:53]}  b5 {[%clk 0:03:02]} 9. Bxf6 {[%clk 0:02:54]}  gxf6 {[%clk 0:03:02]} 10. Nd5 {[%clk 0:02:54]}  f5 {[%clk 0:03:02]} 11. g3 {[%clk 0:02:54]}  fxe4 {[%clk 0:03:01]} 12. Bg2 {[%clk 0:02:54]}  Bg7 {[%clk 0:03:02]} 13. Bxe4 {[%clk 0:02:14]}  O-O {[%clk 0:02:36]} 14. Ne3 {[%clk 0:02:06]}  Qb6 {[%clk 0:01:56]} 15. Qh5 {[%clk 0:01:30]}  h6 {[%clk 0:01:56]} 16. Nf5 {[%clk 0:01:25]}  Nd4 {[%clk 0:01:02]} 17. Nxh6+ {[%clk 0:01:16]}  Bxh6 {[%clk 0:00:44]} 18. Qxh6 {[%clk 0:01:17]}  Bf5 {[%clk 0:00:27]} 19. Bxf5 {[%clk 0:00:45]}  Nxf5 {[%clk 0:00:27]} 20. Qg5+ {[%clk 0:00:42]}  Ng7 {[%clk 0:00:27]} 21. O-O {[%clk 0:00:29]}  f5 {[%clk 0:00:28]} 22. Rad1 {[%clk 0:00:26]}  f4 {[%clk 0:00:28]} 23. c3 {[%clk 0:00:23]}  Rae8 {[%clk 0:00:19]} 24. Nc2 {[%clk 0:00:18]}  Rf5 {[%clk 0:00:17]} 25. Qg4 {[%clk 0:00:15]}  Re6 {[%clk 0:00:17]} 26. Nb4 {[%clk 0:00:14]}  Kf7 {[%clk 0:00:14]} 27. Nd5 {[%clk 0:00:13]}  Qd8 {[%clk 0:00:14]} 28. Kh1 {[%clk 0:00:09]}  Rg6 {[%clk 0:00:14]} 29. Qe2 {[%clk 0:00:09]}  Qg5 {[%clk 0:00:14]} 30. g4 {[%clk 0:00:09]}  f3 {[%clk 0:00:13]} 31. Qe4 {[%clk 0:00:09]}  Rff6 {[%clk 0:00:08]} 32. Nxf6 {[%clk 0:00:09]}  Rxf6 {[%clk 0:00:08]} 33. Qb7+ {[%clk 0:00:09]}  Kg6 {[%clk 0:00:08]} 34. Rg1 {[%clk 0:00:10]}  Ne6 {[%clk 0:00:05]} 35. Rg3 {[%clk 0:00:10]}  Nf4 {[%clk 0:00:05]} 36. Qxf3 {[%clk 0:00:10]}  Qh4 {[%clk 0:00:05]} 37. Qe4+ {[%clk 0:00:11]}  Kg5 {[%clk 0:00:06]} 38. Rdg1 {[%clk 0:00:11]}  Rh6 {[%clk 0:00:06]} 39. R3g2 {[%clk 0:00:10]}  Kf6 {[%clk 0:00:06]} 40. f3 {[%clk 0:00:10]}  Ke6 {[%clk 0:00:06]} 41. Rd2 {[%clk 0:00:11]}  Rh7 {[%clk 0:00:04]} 42. Qf5+ {[%clk 0:00:11]}  Ke7 {[%clk 0:00:05]} 43. g5 {[%clk 0:00:12]}  Rf7 {[%clk 0:00:05]} 44. Qe4 {[%clk 0:00:11]}  Qh3 {[%clk 0:00:02]} 45. g6 {[%clk 0:00:11]}  Rg7 {[%clk 0:00:03]} 46. Qb7+ {[%clk 0:00:11]}  Kf6 {[%clk 0:00:03]} 47. Rxd6+ {[%clk 0:00:11]}  Ne6 {[%clk 0:00:04]} 48. Rxe6+ {[%clk 0:00:11]}  Qxe6 {[%clk 0:00:04]} 49. Qe4 {[%clk 0:00:11]}  Qf5 {[%clk 0:00:05]} 50. Qh4+ {[%clk 0:00:11]}  Ke6 {[%clk 0:00:05]} 51. Qe4 {[%clk 0:00:12]}  Kf6 {[%clk 0:00:02]} 52. Qxf5+ {[%clk 0:00:11]}  Kxf5 {[%clk 0:00:03]} 53. Rg3 {[%clk 0:00:11]}  Rxg6 {[%clk 0:00:04]} 54. Rxg6 {[%clk 0:00:12]}  Kxg6 {[%clk 0:00:05]} 55. Kg2 {[%clk 0:00:12]}  Kf5 {[%clk 0:00:06]} 56. Kf2 {[%clk 0:00:13]}  Kf4 {[%clk 0:00:07]} 57. Ke2 {[%clk 0:00:13]}  e4 {[%clk 0:00:07]} 58. fxe4 {[%clk 0:00:14]}  Kxe4 {[%clk 0:00:07]} 59. a3 {[%clk 0:00:14]}  a5 {[%clk 0:00:07]} 60. Kd2 {[%clk 0:00:14]}  a4 {[%clk 0:00:08]} 61. c4 {[%clk 0:00:15]}  bxc4 {[%clk 0:00:07]} 62. Kc3 {[%clk 0:00:16]}  Kd5 {[%clk 0:00:08]} 63. h4 {[%clk 0:00:16]}  Ke5 {[%clk 0:00:08]} 64. Kxc4 {[%clk 0:00:17]}  Kf5 {[%clk 0:00:09]} 65. Kb4 {[%clk 0:00:18]}  Kg4 {[%clk 0:00:10]} 66. Kxa4 {[%clk 0:00:18]}  Kxh4 {[%clk 0:00:11]} 67. Kb5 {[%clk 0:00:19]}  Kg5 {[%clk 0:00:12]} 68. a4 {[%clk 0:00:19]}  Kf6 {[%clk 0:00:12]} 69. a5 {[%clk 0:00:20]}  Ke6 {[%clk 0:00:13]} 70. Kb6 {[%clk 0:00:21]}  Kd6 {[%clk 0:00:14]} 71. a6 {[%clk 0:00:21]}  Kd7 {[%clk 0:00:14]} 72. a7 {[%clk 0:00:22]}  Kc8 {[%clk 0:00:15]} 73. a8=Q+ {[%clk 0:00:23]}  Kd7 {[%clk 0:00:16]} 74. Qe4 {[%clk 0:00:24]} 1-0


[Site "https://www.chess.com"]

[Event "Titled Tuesday Blitz August 22 Early 2023"]
[White "Farmani Anosheh, Armin"]
[Black "Aevengho"]
[WhiteFideId "24613240"]
[WhiteElo "2419"]
[BlackElo "2574"]
[Result "0-1"]
[Round "8"]
[TimeControl "180+1"]
[Date "2023.08.22"]
[WhiteClock "0:00:00"]
[BlackClock "0:00:02"]
[Board "124"]

1. e4 {[%clk 0:03:00]}  d6 {[%clk 0:02:59]} 2. d4 {[%clk 0:03:00]}  Nf6 {[%clk 0:03:00]} 3. Nc3 {[%clk 0:03:01]}  g6 {[%clk 0:03:01]} 4. f3 {[%clk 0:03:00]}  c6 {[%clk 0:03:01]} 5. Be3 {[%clk 0:03:00]}  b5 {[%clk 0:03:02]} 6. Qd2 {[%clk 0:02:53]}  Nbd7 {[%clk 0:03:01]} 7. d5 {[%clk 0:02:34]}  b4 {[%clk 0:02:54]} 8. dxc6 {[%clk 0:02:34]}  bxc3 {[%clk 0:02:55]} 9. cxd7+ {[%clk 0:02:35]}  Bxd7 {[%clk 0:02:55]} 10. Qxc3 {[%clk 0:02:35]}  Bg7 {[%clk 0:02:56]} 11. Bd4 {[%clk 0:02:34]}  Rc8 {[%clk 0:02:52]} 12. Qd2 {[%clk 0:02:33]}  O-O {[%clk 0:02:52]} 13. Bd3 {[%clk 0:02:30]}  e5 {[%clk 0:02:52]} 14. Bxa7 {[%clk 0:02:26]}  d5 {[%clk 0:02:52]} 15. exd5 {[%clk 0:02:17]}  Nxd5 {[%clk 0:02:40]} 16. Ne2 {[%clk 0:02:17]}  Qh4+ {[%clk 0:02:35]} 17. Bf2 {[%clk 0:02:17]}  Qb4 {[%clk 0:02:25]} 18. c3 {[%clk 0:02:17]}  Qa5 {[%clk 0:02:08]} 19. b4 {[%clk 0:02:03]}  Qa3 {[%clk 0:02:05]} 20. Bc5 {[%clk 0:01:41]}  Rxc5 {[%clk 0:01:50]} 21. bxc5 {[%clk 0:01:39]}  Qxc5 {[%clk 0:01:47]} 22. Be4 {[%clk 0:01:21]}  Be6 {[%clk 0:01:36]} 23. Bxd5 {[%clk 0:01:01]}  Bxd5 {[%clk 0:01:36]} 24. Rd1 {[%clk 0:01:02]}  Bc4 {[%clk 0:01:31]} 25. Nc1 {[%clk 0:00:55]}  f5 {[%clk 0:01:15]} 26. Nb3 {[%clk 0:00:55]}  Qb6 {[%clk 0:01:15]} 27. Qf2 {[%clk 0:00:53]}  Qa6 {[%clk 0:00:48]} 28. Qc5 {[%clk 0:00:50]}  Rc8 {[%clk 0:00:32]} 29. Qa5 {[%clk 0:00:32]}  Qb7 {[%clk 0:00:22]} 30. Rd8+ {[%clk 0:00:31]}  Kf7 {[%clk 0:00:17]} 31. Rxc8 {[%clk 0:00:31]}  Qxc8 {[%clk 0:00:18]} 32. Qc5 {[%clk 0:00:31]}  Qe6 {[%clk 0:00:18]} 33. Kf2 {[%clk 0:00:21]}  Bf8 {[%clk 0:00:17]} 34. Qc7+ {[%clk 0:00:20]}  Kg8 {[%clk 0:00:17]} 35. Rd1 {[%clk 0:00:19]}  e4 {[%clk 0:00:16]} 36. fxe4 {[%clk 0:00:15]}  fxe4 {[%clk 0:00:17]} 37. Qf4 {[%clk 0:00:15]}  Bxb3 {[%clk 0:00:14]} 38. axb3 {[%clk 0:00:15]}  Qxb3 {[%clk 0:00:15]} 39. Re1 {[%clk 0:00:10]}  Bc5+ {[%clk 0:00:13]} 40. Kg3 {[%clk 0:00:08]}  Qxc3+ {[%clk 0:00:13]} 41. Kg4 {[%clk 0:00:08]}  Qxe1 {[%clk 0:00:12]} 42. Qb8+ {[%clk 0:00:08]}  Bf8 {[%clk 0:00:12]} 43. Qb3+ {[%clk 0:00:08]}  Kg7 {[%clk 0:00:13]} 44. Qb2+ {[%clk 0:00:08]}  Kh6 {[%clk 0:00:11]} 45. Qf6 {[%clk 0:00:06]}  Qe2+ {[%clk 0:00:10]} 46. Kh3 {[%clk 0:00:06]}  Qe3+ {[%clk 0:00:10]} 47. g3 {[%clk 0:00:06]}  Qf3 {[%clk 0:00:04]} 48. Qg5+ {[%clk 0:00:03]}  Kg7 {[%clk 0:00:03]} 49. Qe5+ {[%clk 0:00:02]}  Qf6 {[%clk 0:00:02]} 50. Qc7+ {[%clk 0:00:00]}  Qe7 {[%clk 0:00:02]} 0-1


[Site "https://www.chess.com"]